bitfinex/quotes_BTCUSD_20241107
["timestamp","ask_amount","ask_price","bid_price","bid_amount"]
[1730947443326,1.50940572,75227.0,75219.0,0.0462]
[1730947443327,1.50940572,75227.0,75222.0,0.00415328]
[1730947443973,1.50940572,75227.0,75220.0,0.00415328]
[1730947444125,1.50940572,75227.0,75221.0,0.00415328]
[1730947444528,1.50940572,75227.0,75220.0,0.00415328]
[1730947444944,1.50940572,75227.0,75221.0,0.00415328]
[1730947445306,1.50940572,75227.0,75222.0,0.00415328]
[1730947445710,1.50940572,75227.0,75223.0,0.00415328]
[1730947446088,1.50940572,75227.0,75224.0,0.00415328]
[1730947446345,1.50940572,75227.0,75219.0,0.0462]
[1730947446552,1.50940572,75227.0,75220.0,0.0041533]
[1730947446968,1.50940572,75227.0,75213.0,0.0771]
[1730947447185,1.50940572,75227.0,75212.0,0.0041533]
[1730947447186,1.64164674,75227.0,75212.0,0.0041533]
[1730947447396,1.90847674,75227.0,75212.0,0.0041533]
[1730947447628,2.00847674,75227.0,75209.0,8e-05]
[1730947447828,1.87554674,75227.0,75209.0,8e-05]
[1730947449292,2.01047674,75227.0,75209.0,8e-05]
[1730947449473,2.00847674,75227.0,75209.0,8e-05]
[1730947449690,2.04297134,75227.0,75209.0,8e-05]
[1730947450522,0.5,75218.0,75209.0,8e-05]
[1730947450705,0.14146498,75217.0,75216.0,0.1978931]
[1730947450907,0.14346028,75217.0,75209.0,8e-05]
[1730947451270,1.5,75211.0,75209.0,8e-05]
[1730947451694,1.50922396,75211.0,75209.0,8e-05]
[1730947453430,1.66426307,75211.0,75209.0,8e-05]
[1730947455142,2.02874686,75211.0,75209.0,8e-05]
[1730947455298,0.7347,75210.0,75209.0,8e-05]
[1730947455497,1.01108132,75210.0,75209.0,8e-05]
[1730947455859,2.51108132,75210.0,75209.0,8e-05]
[1730947456345,2.64832409,75210.0,75209.0,8e-05]
[1730947456496,2.64832409,75210.0,75189.0,0.001504]
[1730947456497,0.15503911,75190.0,75189.0,0.001504]
[1730947456674,0.00899663,75190.0,75189.0,0.001504]
[1730947456886,0.15503911,75192.0,75189.0,0.001504]
[1730947457082,1.5,75190.0,75189.0,0.001504]
[1730947457306,1.50897333,75190.0,75189.0,0.001504]
[1730947457689,1.64621435,75190.0,75189.0,0.001504]
[1730947457883,1.67115888,75190.0,75189.0,0.001504]
[1730947458412,1.64121435,75190.0,75189.0,0.001504]
[1730947460776,1.50897333,75190.0,75189.0,0.001504]
[1730947465705,1.50897333,75190.0,75189.0,0.01139985]
[1730947466778,1.50897333,75190.0,75189.0,0.001504]
[1730947467422,1.50897333,75190.0,75189.0,0.01140387]
[1730947468973,1.50897333,75190.0,75189.0,0.001504]
[1730947471263,1.66401244,75190.0,75189.0,0.001504]
[1730947471747,1.50897333,75190.0,75189.0,0.001504]
[1730947474550,1.50897333,75190.0,75189.0,0.079004]
[1730947475194,1.50897333,75190.0,75189.0,0.126204]
[1730947476429,1.50897333,75190.0,75189.0,0.02136048]
[1730947476606,1.50897333,75190.0,75189.0,0.02551554]
[1730947478397,1.50897333,75190.0,75189.0,0.00565906]
[1730947478816,1.50897333,75190.0,75189.0,0.02553201]
[1730947480216,1.50897333,75190.0,75189.0,0.001504]
[1730947481679,1.50897333,75190.0,75189.0,0.00565924]
[1730947482322,1.50897333,75190.0,75189.0,0.02555238]
[1730947484833,1.50897333,75190.0,75189.0,0.02139714]
[1730947487488,1.50897333,75190.0,75189.0,0.001504]
[1730947496146,1.66401244,75190.0,75189.0,0.001504]
[1730947496340,1.50897333,75190.0,75189.0,0.001504]
[1730947503482,1.50897333,75190.0,75189.0,0.024504]
[1730947504215,1.5,75190.0,75189.0,0.024504]
[1730947504798,1.50894305,75190.0,75189.0,0.024504]
[1730947505004,1.50894305,75190.0,75189.0,1.07582652]
[1730947505175,0.00894305,75190.0,75189.0,1.17582652]
[1730947505377,0.00894305,75190.0,75189.0,1.25964128]
[1730947505605,1.5,75200.0,75197.0,0.023]
[1730947505928,0.00896009,75199.0,75198.0,0.02715454]
[1730947506183,0.00896009,75199.0,75198.0,0.00415454]
[1730947506717,1.5,75199.0,75198.0,0.00415454]
[1730947506925,1.50903608,75199.0,75198.0,0.00415454]
[1730947507528,1.50903608,75199.0,75189.0,0.001504]
[1730947507729,1.50903608,75199.0,75190.0,0.0041553]
[1730947507928,1.50903608,75199.0,75191.0,0.0041553]
[1730947508360,1.50903608,75199.0,75192.0,0.0041553]
[1730947508566,1.50903608,75199.0,75193.0,0.0041553]
[1730947508766,1.50903608,75199.0,75194.0,0.0041553]
[1730947508973,1.50903608,75199.0,75195.0,0.0041553]
[1730947509174,1.50903608,75199.0,75196.0,0.0041553]
[1730947509415,1.50903608,75199.0,75197.0,0.00415531]
[1730947509589,1.50903608,75199.0,75189.0,0.001504]
[1730947509803,1.50903608,75199.0,75190.0,0.00415531]
[1730947510033,1.50903608,75199.0,75191.0,0.00415531]
[1730947510332,1.50903608,75199.0,75192.0,0.00415531]
[1730947512578,1.50903608,75199.0,75198.0,0.01080312]
[1730947513136,1.50903608,75199.0,75198.0,0.03380312]
[1730947515533,0.00903608,75199.0,75198.0,0.03380312]
[1730947515730,0.00903608,75199.0,75198.0,0.29620357]
[1730947515943,0.00167,75204.0,75203.0,0.028]
[1730947516154,0.00167,75204.0,75203.0,1.22068134]
[1730947516532,0.00167,75204.0,75203.0,1.21802252]
[1730947516757,0.1998884,75217.0,75216.0,0.03]
[1730947516975,0.1978931,75226.0,75222.0,0.023]
[1730947517200,0.1978931,75226.0,75225.0,0.028]
[1730947517407,0.1978931,75226.0,75225.0,0.16024102]
[1730947517674,0.1978931,75226.0,75225.0,0.16188589]
[1730947517852,0.15503911,75243.0,75225.0,0.03379791]
[1730947518003,0.1978931,75232.0,75226.0,0.02964487]
[1730947518205,0.15503911,75243.0,75227.0,0.00415304]
[1730947518532,0.15503911,75243.0,75228.0,0.00415304]
[1730947518724,1.5,75239.0,75229.0,0.00415304]
[1730947518960,1.5,75239.0,75225.0,0.023]
[1730947519108,1.5,75239.0,75230.0,0.00415288]
[1730947519289,1.5,75239.0,75225.0,0.023]
[1730947519502,1.5,75239.0,75231.0,0.00415279]
[1730947519699,1.5,75239.0,75227.0,0.023]
[1730947519911,1.5,75239.0,75228.0,0.00415279]
[1730947520112,1.5,75239.0,75229.0,0.00415279]
[1730947520311,1.5,75239.0,75227.0,0.023]
[1730947520511,1.5,75239.0,75230.0,0.028]
[1730947520760,1.5,75239.0,75238.0,0.023]
[1730947520900,1.5,75239.0,75238.0,0.15939381]
[1730947521545,0.001668,75247.0,75238.0,0.15939381]
[1730947521744,0.001668,75247.0,75240.0,0.023]
[1730947521955,0.001668,75247.0,75241.0,0.00415279]
[1730947522287,0.001668,75247.0,75242.0,0.00415279]
[1730947522505,0.001668,75247.0,75241.0,0.00415279]
[1730947522723,0.001668,75247.0,75242.0,0.00415279]
[1730947522912,0.001668,75247.0,75241.0,0.00415279]
[1730947523073,0.00766453,75246.0,75240.0,0.023]
[1730947523301,0.00766453,75246.0,75241.0,0.00415279]
[1730947523509,0.001668,75247.0,75240.0,0.023]
[1730947523761,1.5,75245.0,75241.0,0.00415279]
[1730947523923,1.5,75245.0,75240.0,0.023]
[1730947524132,0.00766453,75244.0,75240.0,0.023]
[1730947524786,0.00766453,75244.0,75239.0,0.023]
[1730947525359,0.00766453,75244.0,75241.0,0.023]
[1730947525855,0.15503911,75242.0,75236.0,0.00415279]
[1730947526004,0.00766453,75244.0,75236.0,0.00415279]
[1730947526176,0.00787234,75241.0,75236.0,0.00415279]
[1730947526378,1.5,75245.0,75236.0,0.00415241]
[1730947526579,0.00787234,75240.0,75236.0,0.00415241]
[1730947526772,1.5,75245.0,75236.0,0.00415241]
[1730947526978,0.00787234,75239.0,75236.0,0.00415241]
[1730947527183,1.5,75245.0,75236.0,0.00415241]
[1730947527787,0.0767,75245.0,75229.0,0.00415241]
[1730947527986,0.00787234,75244.0,75229.0,0.00415241]
[1730947528248,1.5,75238.0,75229.0,0.00352311]
[1730947528844,0.00787234,75237.0,75229.0,0.00352311]
[1730947529280,0.0767,75245.0,75229.0,0.00352311]
[1730947529424,1.5,75236.0,75229.0,0.01339324]
[1730947529829,0.00787234,75235.0,75229.0,0.01339324]
[1730947530061,0.00787234,75235.0,75228.0,0.66674239]
[1730947530436,0.00787234,75235.0,75229.0,0.00986986]
[1730947530769,0.00787234,75235.0,75212.0,0.25503911]
[1730947530770,0.1978931,75231.0,75219.0,0.66674239]
[1730947530924,0.1978931,75231.0,75209.0,0.0887]
[1730947530925,0.15503911,75232.0,75220.0,0.20776435]
[1730947531123,1.50784772,75230.0,75213.0,0.00987125]
[1730947531341,1.5,75230.0,75214.0,0.33013412]
[1730947531550,0.20573951,75229.0,75214.0,0.13224102]
[1730947532579,0.20573951,75229.0,75214.0,0.023]
[1730947533756,0.20573951,75229.0,75213.0,0.03287899]
[1730947534545,0.20573951,75229.0,75213.0,0.00987899]
[1730947534957,0.20573951,75229.0,75210.0,0.00987899]
[1730947535173,1.5,75219.0,75210.0,0.00987899]
[1730947535565,0.00781616,75218.0,75204.0,0.023]
[1730947535765,0.00781616,75218.0,75204.0,0.15524102]
[1730947536471,0.0769,75217.0,75204.0,0.15524102]
[1730947536784,0.0769,75217.0,75200.0,0.023]
[1730947536993,0.16285527,75216.0,75198.0,0.000833]
[1730947537621,0.16285527,75216.0,75199.0,0.005]
[1730947537819,0.00781616,75216.0,75199.0,0.005]
[1730947538276,0.00781616,75216.0,75198.0,0.000833]
[1730947539356,0.2470931,75210.0,75198.0,0.000833]
[1730947539740,0.00766831,75209.0,75198.0,0.000833]
[1730947539939,1.5,75208.0,75198.0,0.000833]
[1730947540079,1.5,75208.0,75199.0,0.0041545]
[1730947540280,1.5,75208.0,75200.0,0.0041545]
[1730947540478,1.5,75208.0,75198.0,0.000833]
[1730947540479,0.00766831,75207.0,75201.0,0.0041545]
[1730947540876,0.00766831,75207.0,75202.0,0.0041545]
[1730947541128,0.00766831,75207.0,75203.0,0.0041545]
[1730947541300,0.00766831,75207.0,75199.0,0.0041545]
[1730947541509,0.00766831,75207.0,75200.0,0.00415464]
[1730947541687,0.00766831,75207.0,75201.0,0.00415464]
[1730947541889,0.00766831,75207.0,75202.0,0.00415464]
[1730947542205,0.00766831,75207.0,75203.0,0.00415464]
[1730947542401,0.00766831,75207.0,75199.0,0.00415464]
[1730947542687,0.00766831,75207.0,75200.0,0.00415464]
[1730947542842,0.00766831,75207.0,75201.0,0.00415464]
[1730947543071,0.00766831,75207.0,75202.0,0.00415464]
[1730947543419,0.00766831,75207.0,75203.0,0.00415464]
[1730947543594,0.00766831,75207.0,75204.0,0.00415464]
[1730947543815,0.2470931,75210.0,75199.0,0.00415464]
[1730947544008,1.50766831,75206.0,75200.0,0.00415464]
[1730947544213,1.5,75206.0,75201.0,0.00415464]
[1730947544510,1.5,75206.0,75199.0,0.00415464]
[1730947544511,0.00766831,75205.0,75199.0,0.00415464]
[1730947544786,0.00766831,75205.0,75200.0,0.00415464]
[1730947544929,0.00766831,75205.0,75199.0,0.00415464]
[1730947545073,0.00766831,75205.0,75200.0,0.00415464]
[1730947545280,0.00766831,75205.0,75199.0,0.00415464]
[1730947545480,0.00766831,75205.0,75200.0,0.00415464]
[1730947545707,0.00766831,75205.0,75199.0,0.00415464]
[1730947545934,0.00766831,75205.0,75200.0,0.00415464]
[1730947546122,0.00766831,75205.0,75199.0,0.00415464]
[1730947546903,0.1978931,75202.0,75199.0,0.00415464]
[1730947547112,0.0781,75204.0,75198.0,0.000833]
[1730947547301,0.00766831,75203.0,75198.0,0.000833]
[1730947547560,0.00766831,75203.0,75200.0,0.000833]
[1730947548339,1.5,75206.0,75200.0,0.000833]
[1730947548531,0.00762061,75202.0,75200.0,0.000833]
[1730947548728,1.5,75206.0,75200.0,0.000833]
[1730947548999,0.00762061,75201.0,75200.0,0.03564697]
[1730947549177,0.00199515,75215.0,75205.0,0.025]
[1730947549463,0.1978931,75208.0,75206.0,0.00265899]
[1730947549673,0.00199515,75215.0,75209.0,0.023]
[1730947549881,0.1995591,75229.0,75211.0,0.023]
[1730947550060,0.1995591,75229.0,75213.0,0.023]
[1730947550061,1.5,75227.0,75213.0,0.023]
[1730947550272,0.1995591,75229.0,75217.0,0.005]
[1730947550462,0.1995591,75229.0,75222.0,0.023]
[1730947550671,0.1995591,75229.0,75224.0,0.023]
[1730947550889,0.1995591,75229.0,75225.0,0.13639552]
[1730947551095,0.001666,75229.0,75226.0,0.0108017]
[1730947551252,0.001666,75229.0,75227.0,0.0041545]
[1730947551479,0.001666,75229.0,75228.0,0.0108017]
[1730947551725,0.001666,75229.0,75228.0,0.0041545]
[1730947552043,0.001666,75229.0,75228.0,0.0108017]
[1730947552712,0.001666,75229.0,75228.0,0.0041545]
[1730947552930,0.001666,75229.0,75228.0,0.01079682]
[1730947554418,0.001666,75229.0,75228.0,0.00415262]
[1730947555229,0.001666,75229.0,75228.0,0.01079682]
[1730947555430,0.001666,75229.0,75228.0,0.00415262]
[1730947556052,0.001666,75229.0,75224.0,0.66674239]
[1730947556260,0.001666,75229.0,75225.0,0.00415303]
[1730947556717,0.001666,75229.0,75226.0,0.00415303]
[1730947556958,0.001666,75229.0,75227.0,0.00415303]
[1730947557313,0.001666,75229.0,75216.0,0.03074265]
[1730947557314,0.001666,75229.0,75228.0,0.00415303]
[1730947559742,0.001666,75229.0,75217.0,0.66674239]
[1730947560215,0.1995591,75229.0,75220.0,0.00664508]
[1730947560423,1.5,75228.0,75221.0,0.00415317]
[1730947560647,1.5,75228.0,75222.0,0.01079825]
[1730947561077,1.5,75228.0,75223.0,0.00415317]
[1730947561269,1.5,75228.0,75224.0,0.00415317]
[1730947561419,1.5,75228.0,75219.0,0.00664508]
[1730947561420,1.5,75228.0,75225.0,0.00415317]
[1730947561621,1.5,75228.0,75226.0,0.00415317]
[1730947561832,1.5,75228.0,75227.0,0.00415317]
[1730947562045,1.5,75228.0,75227.0,0.01079834]
[1730947562437,1.5,75228.0,75218.0,0.023]
[1730947562672,1.5,75228.0,75219.0,0.14303887]
[1730947562888,1.5,75228.0,75220.0,0.01079795]
[1730947563089,1.5,75228.0,75221.0,0.01079795]
[1730947563290,1.5,75228.0,75219.0,0.79898341]
[1730947563291,1.5,75228.0,75222.0,0.01079795]
[1730947563493,1.5,75228.0,75223.0,0.14303897]
[1730947563706,1.5,75228.0,75224.0,0.01079795]
[1730947563911,1.5,75228.0,75225.0,0.14503897]
[1730947564138,1.5,75228.0,75226.0,0.01079795]
[1730947564336,1.5,75228.0,75227.0,0.01079795]
[1730947564992,1.73713911,75228.0,75227.0,0.01079795]
[1730947565194,1.73713911,75228.0,75227.0,0.00415306]
[1730947565195,1.96938013,75228.0,75227.0,0.00415306]
[1730947565549,0.1,75227.0,75218.0,0.00664489]
[1730947565726,0.23224102,75227.0,75219.0,0.00415403]
[1730947565934,0.23224102,75227.0,75207.0,0.008308]
[1730947565935,0.23224102,75227.0,75220.0,0.00415403]
[1730947566125,1.5,75222.0,75221.0,0.00415403]
[1730947566353,1.65503911,75222.0,75206.0,0.66674239]
[1730947566673,1.65503911,75222.0,75200.0,0.000833]
[1730947566674,1.65503911,75222.0,75207.0,0.20869385]
[1730947566846,1.65503911,75222.0,75202.0,0.03130827]
[1730947566847,1.65503911,75222.0,75208.0,0.01080075]
[1730947567049,0.1978931,75221.0,75209.0,0.01080075]
[1730947567251,0.1978931,75221.0,75210.0,0.01080075]
[1730947567451,0.1978931,75221.0,75202.0,0.023]
[1730947567452,0.1978931,75221.0,75211.0,0.01080075]
[1730947567653,0.1978931,75221.0,75212.0,0.01080075]
[1730947567898,0.33013412,75221.0,75213.0,0.01080075]
[1730947568071,0.33013412,75221.0,75214.0,0.01080075]
[1730947568266,0.33013412,75221.0,75215.0,0.00415413]
[1730947568493,0.33013412,75221.0,75216.0,0.00415413]
[1730947568692,0.33013412,75221.0,75217.0,0.00415413]
[1730947568896,0.13224102,75221.0,75218.0,0.00415413]
[1730947569098,0.13224102,75221.0,75219.0,0.00415413]
[1730947569296,0.13224102,75221.0,75220.0,0.00415413]
[1730947569297,0.33013412,75221.0,75220.0,0.00415413]
[1730947569471,0.13224102,75221.0,75220.0,0.00415413]
[1730947569672,0.13224102,75221.0,75207.0,0.00664675]
[1730947569873,0.15503911,75216.0,75208.0,0.0108011]
[1730947570073,0.15503911,75216.0,75209.0,0.00664675]
[1730947570399,0.15503911,75216.0,75210.0,0.01080097]
[1730947570400,1.5,75215.0,75210.0,0.01080097]
[1730947570598,1.5,75215.0,75201.0,0.66674239]
[1730947570599,1.5,75215.0,75211.0,0.00415422]
[1730947570802,1.5,75215.0,75212.0,0.00415422]
[1730947571141,1.5,75215.0,75201.0,0.66254336]
[1730947571285,1.5,75215.0,75212.0,0.000833]
[1730947573217,1.65503911,75215.0,75212.0,0.000833]
[1730947573784,0.0802,75214.0,75212.0,0.000833]
[1730947576244,0.06524,75214.0,75212.0,0.000833]
[1730947577386,1.5,75213.0,75212.0,0.000833]
[1730947579003,1.5475,75213.0,75212.0,0.000833]
[1730947579893,1.67974102,75213.0,75212.0,0.000833]
[1730947580997,1.68474102,75213.0,75212.0,0.000833]
[1730947581480,1.78474102,75213.0,75212.0,0.000833]
[1730947585202,1.5,75213.0,75212.0,0.00498784]
[1730947585404,1.5,75213.0,75212.0,0.00498725]
[1730947587273,1.5,75213.0,75212.0,0.01163411]
[1730947587930,1.5,75213.0,75212.0,0.00498725]
[1730947588350,0.15503911,75216.0,75212.0,0.00498725]
[1730947588556,0.15503911,75216.0,75213.0,0.00415425]
[1730947588757,0.15503911,75216.0,75212.0,0.000833]
[1730947588970,1.63224102,75215.0,75212.0,0.000833]
[1730947589423,0.7399,75213.0,75212.0,0.000833]
[1730947589606,0.87214102,75213.0,75212.0,0.000833]
[1730947589809,2.37214102,75213.0,75212.0,0.000833]
[1730947593334,2.36214102,75213.0,75212.0,0.000833]
[1730947593951,2.36714102,75213.0,75212.0,0.000833]
[1730947594390,2.37214102,75213.0,75212.0,0.000833]
[1730947597574,1.5,75213.0,75212.0,0.000833]
[1730947597763,1.5,75213.0,75212.0,0.01493608]
[1730947598002,1.5,75213.0,75212.0,0.02158323]
[1730947600064,1.5,75213.0,75212.0,0.01163394]
[1730947600299,1.5,75213.0,75212.0,0.02158144]
[1730947600779,1.5,75213.0,75212.0,0.01163394]
[1730947600987,1.5,75213.0,75212.0,0.00498721]
[1730947601937,1.5752,75213.0,75212.0,0.00498721]
[1730947603299,1.70744102,75213.0,75212.0,0.00498721]
[1730947604929,1.94468379,75213.0,75212.0,0.00498721]
[1730947605097,1.95468379,75213.0,75212.0,0.000833]
[1730947605763,1.82244102,75213.0,75212.0,0.000833]
[1730947606459,1.81244102,75213.0,75212.0,0.000833]
[1730947606688,1.82244102,75213.0,75212.0,0.000833]
[1730947606906,1.81244102,75213.0,75212.0,0.000833]
[1730947607143,1.82244102,75213.0,75212.0,0.000833]
[1730947612249,1.81244102,75213.0,75212.0,0.000833]
[1730947612498,1.82244102,75213.0,75212.0,0.000833]
[1730947613181,1.5,75213.0,75212.0,0.000833]
[1730947614561,1.6,75213.0,75212.0,0.000833]
[1730947615690,1.6,75213.0,75212.0,0.00498741]
[1730947616339,1.73224102,75213.0,75212.0,0.00498741]
[1730947616557,1.73224102,75213.0,75212.0,0.000833]
[1730947617183,1.73224102,75213.0,75212.0,0.00498766]
[1730947617603,1.85634102,75213.0,75212.0,0.000833]
[1730947617740,1.86134102,75213.0,75212.0,0.000833]
[1730947618478,1.85634102,75213.0,75212.0,0.000833]
[1730947618734,1.85634102,75213.0,75212.0,0.00498765]
[1730947618735,1.73224102,75213.0,75212.0,0.00498765]
[1730947619696,1.73224102,75213.0,75212.0,0.01163529]
[1730947621738,1.6,75213.0,75212.0,0.01163529]
[1730947621940,1.5,75213.0,75212.0,0.01163529]
[1730947622562,1.5,75213.0,75212.0,0.01994423]
[1730947622786,1.5,75213.0,75212.0,0.01994144]
[1730947624750,1.5,75213.0,75212.0,0.01163342]
[1730947625433,1.5,75213.0,75212.0,0.01994144]
[1730947626046,1.5,75213.0,75212.0,0.01994222]
[1730947628824,0.001666,75214.0,75212.0,0.01994222]
[1730947628999,0.001666,75214.0,75213.0,0.01910922]
[1730947629610,0.001666,75214.0,75213.0,0.0498]
[1730947629783,0.001666,75214.0,75213.0,0.20114764]
[1730947629984,0.001666,75214.0,75213.0,0.49327975]
[1730947630193,0.001666,75214.0,75213.0,0.49262078]
[1730947630395,0.001666,75214.0,75213.0,0.50262078]
[1730947630617,0.1978931,75225.0,75223.0,0.1266]
[1730947630796,0.1978931,75225.0,75224.0,0.15134764]
[1730947631190,1.5,75232.0,75224.0,0.15134764]
[1730947631480,1.5,75232.0,75227.0,0.0054682]
[1730947631654,0.1978931,75231.0,75228.0,0.02457482]
[1730947631805,0.1978931,75231.0,75228.0,0.01910662]
[1730947632017,0.1978931,75231.0,75228.0,0.02457449]
[1730947632250,1.5,75232.0,75228.0,0.01910662]
[1730947633113,0.1978931,75231.0,75228.0,0.01910662]
[1730947633232,1.5,75232.0,75223.0,0.1266]
[1730947633436,1.5,75232.0,75228.0,0.01495033]
[1730947633632,0.1978931,75231.0,75228.0,0.00415287]
[1730947633918,1.5,75232.0,75228.0,0.00415287]
[1730947633919,1.5,75232.0,75228.0,0.01495034]
[1730947634322,0.1978931,75231.0,75228.0,0.01495034]
[1730947634537,1.5,75232.0,75228.0,0.01495034]
[1730947636667,1.5,75232.0,75228.0,0.02325609]
[1730947637072,1.5,75232.0,75228.0,0.02325497]
[1730947637435,0.001666,75235.0,75228.0,0.15265497]
[1730947637653,0.001666,75235.0,75228.0,0.15465497]
[1730947637856,0.001666,75235.0,75228.0,0.29501414]
[1730947638056,0.001666,75235.0,75228.0,0.29235587]
[1730947638273,0.001666,75235.0,75228.0,0.28489599]
[1730947640515,0.001666,75235.0,75228.0,0.26994652]
[1730947640656,0.001666,75235.0,75228.0,0.28489481]
[1730947642273,0.001666,75235.0,75228.0,0.02325379]
[1730947642497,0.001666,75235.0,75228.0,0.01494904]
[1730947643039,0.001666,75235.0,75228.0,0.02325379]
[1730947644014,0.001666,75235.0,75228.0,0.01910092]
[1730947644452,0.001666,75235.0,75228.0,0.0191022]
[1730947645555,0.001666,75235.0,75228.0,0.02455341]
[1730947645760,0.001666,75235.0,75228.0,0.0191022]
[1730947647956,0.15503911,75233.0,75228.0,0.0191022]
[1730947648435,0.1978931,75232.0,75228.0,0.0191022]
[1730947648670,0.001666,75235.0,75228.0,0.0191022]
[1730947649142,1.5,75231.0,75228.0,0.0191022]
[1730947649694,1.5,75231.0,75221.0,0.03966658]
[1730947649902,1.5,75231.0,75228.0,0.0066448]
[1730947650123,1.5,75231.0,75228.0,0.0191038]
[1730947651618,0.1978931,75230.0,75228.0,0.0191038]
[1730947651764,1.5,75231.0,75219.0,0.7866]
[1730947651965,1.5,75231.0,75220.0,0.01910518]
[1730947652157,0.1978931,75230.0,75221.0,0.01910518]
[1730947652359,0.1978931,75230.0,75222.0,0.01910518]
[1730947652610,0.1978931,75230.0,75223.0,0.01910518]
[1730947652772,0.1978931,75230.0,75224.0,0.01910518]
[1730947652992,0.1978931,75230.0,75225.0,0.01079858]
[1730947653229,0.1978931,75230.0,75226.0,0.01079858]
[1730947653446,0.1978931,75230.0,75227.0,0.01079858]
[1730947653687,0.1978931,75230.0,75228.0,0.01079858]
[1730947654158,1.52972325,75231.0,75228.0,0.01079858]
[1730947655243,0.082866,75229.0,75228.0,0.01079858]
[1730947655440,0.082866,75229.0,75228.0,0.01079937]
[1730947655665,0.082866,75229.0,75214.0,0.001666]
[1730947655893,0.15503911,75227.0,75215.0,0.01079941]
[1730947656104,0.15503911,75227.0,75216.0,0.01910665]
[1730947656332,0.15503911,75227.0,75217.0,0.01079941]
[1730947656600,0.15503911,75227.0,75218.0,0.01910665]
[1730947656808,0.15503911,75227.0,75219.0,0.01910665]
[1730947657011,0.15503911,75227.0,75220.0,0.01910665]
[1730947657210,0.15503911,75227.0,75221.0,0.01910665]
[1730947657445,0.15503911,75227.0,75214.0,0.001666]
[1730947657446,0.15503911,75227.0,75222.0,0.01910665]
[1730947657646,0.15503911,75227.0,75223.0,0.01079941]
[1730947657850,0.15503911,75227.0,75224.0,0.01079941]
[1730947658052,0.15503911,75227.0,75225.0,0.01079941]
[1730947658247,0.15503911,75227.0,75214.0,0.001666]
[1730947658248,0.15503911,75227.0,75226.0,0.01079941]
[1730947658516,0.20123911,75227.0,75226.0,0.01079941]
[1730947658906,1.70123911,75227.0,75226.0,0.01079941]
[1730947659332,1.70123911,75227.0,75226.0,0.01079959]
[1730947659535,1.93348013,75227.0,75226.0,0.01495328]
[1730947659743,2.0707229,75227.0,75226.0,0.01495328]
[1730947659944,2.1458229,75227.0,75226.0,0.00830738]
[1730947660363,2.1458229,75227.0,75226.0,0.00830763]
[1730947660716,2.01358013,75227.0,75226.0,0.00830763]
[1730947661778,1.85354102,75227.0,75226.0,0.00830763]
[1730947662003,2.00858013,75227.0,75226.0,0.00830763]
[1730947662214,2.01358013,75227.0,75226.0,0.00830763]
[1730947662650,2.00858013,75227.0,75226.0,0.00830763]
[1730947663098,2.00858013,75227.0,75226.0,0.00830764]
[1730947663656,1.5,75227.0,75226.0,0.00830764]
[1730947663854,1.5,75227.0,75226.0,0.01079988]
[1730947665493,0.001666,75229.0,75226.0,0.08619988]
[1730947665757,0.001666,75229.0,75227.0,0.1430409]
[1730947665907,0.001666,75229.0,75228.0,0.02176595]
[1730947666143,0.001666,75229.0,75228.0,0.01910772]
[1730947666562,0.001666,75229.0,75228.0,0.01079864]
[1730947666992,0.001666,75229.0,75228.0,0.01079843]
[1730947669519,0.15670511,75229.0,75228.0,0.01079843]
[1730947669718,0.15670511,75229.0,75228.0,0.00415324]
[1730947670151,0.15670511,75229.0,75214.0,0.001666]
[1730947670152,1.78894613,75229.0,75214.0,0.001666]
[1730947670398,0.15503911,75220.0,75217.0,0.0083073]
[1730947670485,0.15503911,75220.0,75218.0,0.01079972]
[1730947670694,0.15503911,75220.0,75219.0,0.01079972]
[1730947673570,0.15503911,75220.0,75214.0,0.001666]
[1730947673750,0.15503911,75220.0,75219.0,0.01080007]
[1730947675180,1.36131656,75220.0,75219.0,0.00415387]
[1730947675405,0.367452,75215.0,75214.0,0.001666]
[1730947675651,0.50969302,75215.0,75214.0,0.001666]
[1730947675832,1.87674102,75215.0,75214.0,0.001666]
[1730947678931,2.00969302,75215.0,75214.0,0.001666]
[1730947679134,2.01098379,75215.0,75214.0,0.001666]
[1730947679358,2.00898379,75215.0,75214.0,0.001666]
[1730947679944,2.2969749,75215.0,75214.0,0.001666]
[1730947680376,2.32682393,75215.0,75214.0,0.001666]
[1730947680593,2.32882393,75215.0,75214.0,0.001666]
[1730947681000,2.32882393,75215.0,75212.0,0.000833]
[1730947681001,0.015,75213.0,75212.0,0.000833]
[1730947681260,0.38019602,75213.0,75212.0,0.000833]
[1730947681479,0.38219602,75213.0,75212.0,0.000833]
[1730947681698,0.38019602,75213.0,75212.0,0.000833]
[1730947681953,1.88019602,75213.0,75212.0,0.000833]
[1730947682780,1.88219602,75213.0,75212.0,0.000833]
[1730947683024,1.97497679,75213.0,75212.0,0.000833]
[1730947683240,0.1,75201.0,75198.0,0.000833]
[1730947683478,0.23224102,75201.0,75198.0,0.000833]
[1730947683690,0.38728013,75201.0,75198.0,0.000833]
[1730947684104,1.88728013,75201.0,75198.0,0.000833]
[1730947684331,1.93418013,75201.0,75198.0,0.000833]
[1730947685591,0.105,75199.0,75198.0,0.000833]
[1730947685824,0.37000073,75199.0,75198.0,0.000833]
[1730947686043,0.23702073,75199.0,75198.0,0.000833]
[1730947686454,1.73702073,75199.0,75198.0,0.000833]
[1730947687722,1.87000073,75199.0,75198.0,0.000833]
[1730947688367,2.02503984,75199.0,75198.0,0.000833]
[1730947688585,1.73702073,75199.0,75198.0,0.000833]
[1730947689688,1.76664143,75199.0,75198.0,0.000833]
[1730947690543,2.05466054,75199.0,75198.0,0.000833]
[1730947690777,1.76664143,75199.0,75198.0,0.000833]
[1730947690987,1.79560887,75199.0,75198.0,0.000833]
[1730947691203,1.76664143,75199.0,75198.0,0.000833]
[1730947696167,1.76664143,75199.0,75198.0,0.00498883]
[1730947697796,1.76186172,75199.0,75198.0,0.00498883]
[1730947697999,1.76186172,75199.0,75198.0,0.000833]
[1730947698291,1.76186172,75199.0,75198.0,0.00498869]
[1730947698506,1.76186172,75199.0,75198.0,0.01163775]
[1730947699106,1.6296207,75199.0,75198.0,0.01163775]
[1730947699319,1.5296207,75199.0,75198.0,0.02016876]
[1730947699513,1.5296207,75199.0,75198.0,0.14596876]
[1730947699871,1.5,75199.0,75198.0,0.14596876]
[1730947700280,1.5,75199.0,75198.0,0.15141302]